fUST/lending_fUST_20250218
["ID","MTS","AMOUNT","RATE_DAILY","PERIOD"]
[353464616,1739857839216,-500.0,0.00013698,2]
[353464617,1739857839226,-165.24063384,0.00013698,2]
[353464618,1739857839236,-500.0,0.00013698,2]
[353464619,1739857839247,-500.0,0.00013698,2]
[353464620,1739857839258,-619.04,0.00013698,2]
[353464621,1739857839269,-500.0,0.00013698,2]
[353464622,1739857839280,-505.38278696,0.00013698,2]
[353464623,1739857839291,-500.0,0.00013698,2]
[353464624,1739857839302,-503.33783636,0.00013698,2]
[353464625,1739857839312,-500.0,0.00013698,2]
[353464626,1739857839321,-500.0,0.00013698,2]
[353464627,1739857839331,-500.0,0.00013698,2]
[353464628,1739857839342,-500.0,0.00013698,2]
[353464629,1739857839352,-500.0,0.00013698,2]
[353464630,1739857839364,-180.20002784,0.00013698,2]
[353464631,1739857839374,-500.0,0.00013698,2]
[353464632,1739857839385,-500.0,0.00013698,2]
[353464633,1739857839396,-500.0,0.00013698,2]
[353464634,1739857839407,-503.49520543,0.00013698,2]
[353464635,1739857839417,-535.98,0.00013698,2]
[353464636,1739857839427,-505.14423821,0.00013698,2]
[353464637,1739857839438,-577.73,0.00013698,2]
[353464638,1739857839449,-500.0,0.00013698,2]
[353464639,1739857839459,-500.0,0.00013698,2]
[353464640,1739857839470,-500.0,0.00013698,2]
[353464641,1739857839481,-502.08802278,0.00013698,2]
[353464642,1739857839491,-526.59,0.00013698,2]
[353464643,1739857839502,-501.87606981,0.00013698,2]
[353464644,1739857839512,-500.0,0.00013698,2]
[353464645,1739857839523,-500.0,0.00013698,2]
[353464646,1739857839534,-500.0,0.00013698,2]
[353464647,1739857839544,-500.0,0.00013698,2]
[353464648,1739857839555,-500.0,0.00013698,2]
[353464649,1739857839566,-500.0,0.00013698,2]
[353464650,1739857839577,-500.0,0.00013698,2]
[353464651,1739857839587,-500.0,0.00013698,2]
[353464652,1739857839598,-500.0,0.00013698,2]
[353464653,1739857839608,-500.0,0.00013698,2]
[353464654,1739857839619,-500.0,0.00013698,2]
[353464655,1739857839629,-500.0,0.00013698,2]
[353464656,1739857839640,-500.0,0.00013698,2]
[353464657,1739857839650,-625.01693535,0.00013698,2]
[353464658,1739857839661,-500.0,0.00013698,2]
[353464659,1739857839672,-502.13907655,0.00013698,2]
[353464660,1739857839682,-500.0,0.00013698,2]
[353464661,1739857839692,-500.0,0.00013698,2]
[353464662,1739857839703,-500.0,0.00013698,2]
[353464663,1739857839819,-500.0,0.00013698,2]
[353464664,1739857839829,-500.0,0.00013698,2]
[353464665,1739857839838,-500.0,0.00013698,2]
[353464666,1739857839848,-500.0,0.00013698,2]
[353464667,1739857839858,-500.0,0.00013698,2]
[353464668,1739857839867,-505.04527429,0.00013698,2]
[353464669,1739857839877,-500.0,0.00013698,2]
[353464670,1739857839887,-500.0,0.00013698,2]
[353464671,1739857839896,-500.0,0.00013698,2]
[353464672,1739857839907,-500.0,0.00013698,2]
[353464673,1739857839917,-500.0,0.00013698,2]
[353464674,1739857839926,-500.0,0.00013698,2]
[353464675,1739857839935,-213.97509323,0.00013698,2]
[353464676,1739857839945,-500.0,0.00013698,2]
[353464677,1739857839954,-500.0,0.00013698,2]
[353464678,1739857839965,-500.0,0.00013698,2]
[353464679,1739857839974,-501.40233573,0.00013698,2]
[353464680,1739857839983,-508.44518752,0.00013698,2]
[353464681,1739857839992,-500.0,0.00013698,2]
[353464682,1739857840002,-500.0,0.00013698,2]
[353464683,1739857840011,-500.0,0.00013698,2]
[353464684,1739857840021,-500.0,0.00013698,2]
[353464685,1739857840030,-500.0,0.00013698,2]
[353464686,1739857840039,-500.0,0.00013698,2]
[353464687,1739857840048,-500.0,0.00013698,2]
[353464688,1739857840057,-500.0,0.00013698,2]
[353464689,1739857840066,-500.0,0.00013698,2]
[353464690,1739857840076,-1654.65,0.00013698,2]
[353464692,1739857840085,-500.0,0.00013698,2]
[353464694,1739857840095,-500.0,0.00013698,2]
[353464695,1739857840105,-4731.14,0.00013698,2]
[353464696,1739857840114,-500.0,0.00013698,2]
[353464697,1739857840123,-605.52706718,0.00013698,2]
[353464698,1739857840133,-500.0,0.00013698,2]
[353464699,1739857840142,-500.0,0.00013698,2]
[353464701,1739857840152,-500.0,0.00013698,2]
[353464702,1739857840162,-500.0,0.00013698,2]
[353464703,1739857840171,-500.0,0.00013698,2]
[353464704,1739857840181,-641.08,0.00013698,2]
[353464705,1739857840190,-500.0,0.00013698,2]
[353464706,1739857840199,-500.0,0.00013698,2]
[353464708,1739857840212,-500.0,0.00013698,2]
[353464710,1739857840222,-500.0,0.00013698,2]
[353464711,1739857840232,-500.0,0.00013698,2]
[353464712,1739857840241,-506.04154076,0.00013698,2]
[353464713,1739857840250,-500.0,0.00013698,2]
[353464714,1739857840260,-500.0,0.00013698,2]
[353464715,1739857840269,-500.0,0.00013698,2]
[353464717,1739857840278,-500.0,0.00013698,2]
[353464718,1739857840288,-500.0,0.00013698,2]
[353464719,1739857840300,-500.0,0.00013698,2]
[353464720,1739857840310,-500.0,0.00013698,2]
[353464721,1739857840320,-500.0,0.00013698,2]
[353464722,1739857840330,-500.0,0.00013698,2]
[353464724,1739857840339,-500.0,0.00013698,2]
[353464725,1739857840349,-620.25,0.00013698,2]
[353464726,1739857840358,-84.02497086,0.00013698,2]
[353464727,1739857840374,-415.97502914,0.00013698,2]
[353464728,1739857840384,-500.0,0.00013698,2]
[353464729,1739857840393,-500.0,0.00013698,2]
[353464730,1739857840403,-500.0,0.00013698,2]
[353464731,1739857840412,-500.0,0.00013698,2]
[353464732,1739857840422,-557.07909303,0.00013698,2]
[353464734,1739857840433,-500.0,0.00013698,2]
[353464735,1739857840443,-445.29205883,0.00013698,2]
[353464737,1739857840456,-54.70794117,0.00013698,2]
[353464738,1739857840466,-500.0,0.00013698,2]
[353464739,1739857840476,-500.0,0.00013698,2]
[353464740,1739857840486,-500.0,0.00013698,2]
[353464741,1739857840495,-500.0,0.00013698,2]
[353464742,1739857840504,-638.63,0.00013698,2]
[353464743,1739857840514,-158.12530992,0.00013698,2]
[353464744,1739857840526,-341.87469008,0.00013698,2]
[353464745,1739857840536,-500.0,0.00013698,2]
[353464746,1739857840546,-1715.04,0.00013698,2]
[353464747,1739857840555,-500.0,0.00013698,2]
[353464748,1739857840565,-500.0,0.00013698,2]
[353464749,1739857840575,-500.0,0.00013698,2]
[353464750,1739857840584,-500.0,0.00013698,2]
[353464751,1739857840593,-500.0,0.00013698,2]
[353464752,1739857840602,-500.0,0.00013698,2]
[353464753,1739857840611,-500.0,0.00013698,2]
[353464754,1739857840621,-500.0,0.00013698,2]
[353464755,1739857840630,-500.0,0.00013698,2]
[353464757,1739857840639,-500.0,0.00013698,2]
[353464759,1739857840648,-502.41501435,0.00013698,2]
[353464761,1739857840657,-503.99860814,0.00013698,2]
[353464763,1739857840667,-500.0,0.00013698,2]
[353464764,1739857840676,-504.10515674,0.00013698,2]
[353464765,1739857840685,-500.0,0.00013698,2]
[353464766,1739857840694,-245.301444,0.00013698,2]
[353464768,1739857840703,-500.0,0.00013698,2]
[353464770,1739857840713,-500.0,0.00013698,2]
[353464772,1739857840722,-500.0,0.00013698,2]
[353464773,1739857840731,-500.0,0.00013698,2]
[353464774,1739857840740,-500.0,0.00013698,2]
[353464775,1739857840750,-575.5,0.00013698,2]
[353464776,1739857840759,-500.0,0.00013698,2]
[353464777,1739857840768,-500.0,0.00013698,2]
[353464778,1739857840778,-500.0,0.00013698,2]
[353464779,1739857840787,-500.0,0.00013698,2]
[353464780,1739857840796,-500.0,0.00013698,2]
[353464781,1739857840805,-500.0,0.00013698,2]
[353464782,1739857840815,-501.26057329,0.00013698,2]
[353464783,1739857840825,-500.0,0.00013698,2]
[353464784,1739857840834,-500.0,0.00013698,2]
[353464785,1739857840844,-503.91670477,0.00013698,2]
[353464786,1739857840854,-500.0,0.00013698,2]
[353464787,1739857840863,-500.0,0.00013698,2]
[353464788,1739857840872,-524.5,0.00013698,2]
[353464789,1739857840881,-298.22342256,0.00013698,2]
[353464790,1739857840891,-500.0,0.00013698,2]
[353464791,1739857840900,-502.17732551,0.00013698,2]
[353464792,1739857840909,-502.3880868,0.00013698,2]
[353464793,1739857840919,-500.0,0.00013698,2]
[353464794,1739857840929,-500.0,0.00013698,2]
[353464795,1739857840938,-500.0,0.00013698,2]
[353464796,1739857840949,-500.0,0.00013698,2]
[353464797,1739857840961,-503.63623196,0.00013698,2]
[353464798,1739857840970,-627.97600661,0.00013698,2]
[353464799,1739857840979,-500.0,0.00013698,2]
[353464800,1739857840989,-502.60092427,0.00013698,2]
[353464801,1739857840998,-500.0,0.00013698,2]
[353464802,1739857841007,-500.0,0.00013698,2]
[353464803,1739857841017,-500.0,0.00013698,2]
[353464804,1739857841026,-500.0,0.00013698,2]
[353464805,1739857841035,-500.0,0.00013698,2]
[353464806,1739857841045,-408.35,0.00013698,2]
[353464807,1739857841055,-254.98,0.00013698,2]
[353464808,1739857841065,-500.12369152,0.0001378,2]
[353464809,1739857841074,-502.73609973,0.0001378,2]
[353464810,1739857841083,-500.0,0.0001378,2]
[353464811,1739857841092,-500.0,0.0001378,2]
[353464812,1739857841102,-500.0,0.0001378,2]
[353464813,1739857841111,-176.35,0.0001378,2]
[353464814,1739857841121,-396.0,0.0001378,2]
[353464815,1739857841130,-502.54452597,0.0001378,2]
[353464816,1739857841139,-500.0,0.0001378,2]
[353464817,1739857841148,-137.17496645,0.0001378,2]
[353464818,1739857841160,-362.82503355,0.0001378,2]
[353464819,1739857841169,-500.0,0.0001378,2]
[353464820,1739857841179,-504.46288843,0.0001378,2]
[353464821,1739857841188,-502.99190171,0.0001378,2]
[353464822,1739857841198,-500.0,0.0001378,2]
[353464823,1739857841208,-271.86,0.0001378,2]
[353464824,1739857841221,-500.0,0.0001378,2]
[353464825,1739857841231,-500.0,0.0001378,2]
[353464826,1739857841241,-170.07,0.0001378,2]
[353464827,1739857841251,-503.90051519,0.0001378,2]
[353464828,1739857841261,-500.0,0.0001378,2]
[353464829,1739857841270,-155.36,0.0001378,2]
[353464830,1739857841279,-501.54839541,0.0001378,2]
[353464831,1739857841289,-280.64387514,0.0001378,2]
[353464832,1739857841302,-219.35612486,0.0001378,2]
[353464833,1739857841311,-186.5013552,0.0001378,2]
[353464834,1739857841337,-76.3986448,0.0001378,2]
[353464835,1739857841347,-500.0,0.0001378,2]
[353464836,1739857841357,-500.0,0.0001378,2]
[353464837,1739857841367,-500.0,0.0001378,2]
[353464838,1739857841377,-223.23,0.0001378,2]
[353464839,1739857841386,-520.73,0.0001378,2]
[353464840,1739857841396,-252.03,0.0001378,2]
[353464841,1739857841405,-268.73,0.0001378,2]
[353464842,1739857841415,-183.84,0.0001378,2]
[353464843,1739857841425,-245.58,0.0001378,2]
[353464844,1739857841434,-505.48661776,0.0001378,2]
[353464845,1739857841443,-502.34005055,0.0001378,2]
[353464846,1739857841453,-367.96,0.0001378,2]
[353464847,1739857841463,-381.44,0.0001378,2]
[353464848,1739857841472,-500.0,0.0001378,2]
[353464849,1739857841482,-198.05,0.0001378,2]
[353464850,1739857841492,-500.0,0.0001378,2]
[353464851,1739857841502,-511.75825231,0.0001378,2]
[353464852,1739857841511,-263.55,0.0001378,2]
[353464853,1739857841520,-367.8,0.0001378,2]
[353464854,1739857841530,-500.0,0.0001378,2]
[353464855,1739857841540,-500.0,0.0001378,2]
[353464856,1739857841549,-1654.65,0.0001378,2]
[353464857,1739857841558,-500.0,0.0001378,2]
[353464858,1739857841569,-4731.14,0.0001378,2]
[353464859,1739857841578,-500.0,0.0001378,2]
[353464860,1739857841588,-398.47,0.0001378,2]
[353464861,1739857841598,-597.21,0.0001378,2]
[353464862,1739857841608,-322.2,0.0001378,2]
[353464863,1739857841618,-500.0,0.0001378,2]
[353464864,1739857841627,-232.16,0.0001378,2]
[353464865,1739857841637,-500.0,0.0001378,2]
[353464866,1739857841646,-500.0,0.0001378,2]
[353464867,1739857841655,-500.0,0.0001378,2]
[353464868,1739857841665,-500.0,0.0001378,2]
[353464869,1739857841675,-642.54,0.0001378,2]
[353464870,1739857841685,-500.0,0.0001378,2]
[353464871,1739857841695,-500.0,0.0001378,2]
[353464872,1739857841704,-500.0,0.0001378,2]
[353464873,1739857841714,-500.0,0.0001378,2]
[353464874,1739857841723,-500.0,0.0001378,2]
[353464875,1739857841733,-580.52,0.0001378,2]
[353464876,1739857841743,-254.28,0.0001378,2]
[353464877,1739857841753,-1715.04,0.0001378,2]
[353464878,1739857841762,-500.0,0.0001378,2]
[353464879,1739857841771,-500.0,0.0001378,2]
[353464880,1739857841780,-500.0,0.0001378,2]
[353464881,1739857841790,-435.53,0.0001378,2]
[353464882,1739857841799,-500.0,0.0001378,2]
[353464883,1739857841809,-400.64,0.0001378,2]
[353464884,1739857841819,-500.0,0.0001378,2]
[353464885,1739857841828,-567.07,0.0001378,2]
[353464886,1739857841838,-500.0,0.0001378,2]
[353464887,1739857841849,-596.25,0.0001378,2]
[353464888,1739857841859,-349.31001524,0.0001378,2]
[353464889,1739857841869,-500.0,0.0001378,2]
[353464890,1739857841879,-500.0,0.0001378,2]
[353464891,1739857841889,-366.65277056,0.0001378,2]
[353464892,1739857841899,-606.61,0.0001378,2]
[353464893,1739857841908,-500.0,0.0001378,2]
[353464894,1739857841917,-534.01,0.0001378,2]
[353464895,1739857841926,-500.0,0.0001378,2]
[353464896,1739857841936,-466.933,0.00013802,2]
[353464897,1739857841945,-500.0,0.00013863,2]
[353464898,1739857841956,-520.25,0.00013863,2]
[353464899,1739857841966,-213.61,0.00013863,2]
[353464900,1739857841975,-500.0,0.00013863,2]
[353464901,1739857841985,-530.05,0.00013863,2]
[353464902,1739857841995,-500.0,0.00013863,2]
[353464903,1739857842005,-303.5,0.00013863,2]
[353464904,1739857842016,-1654.65,0.00013863,2]
[353464905,1739857842026,-500.0,0.00013863,2]
[353464906,1739857842035,-4731.14,0.00013863,2]
[353464907,1739857842044,-586.65,0.00013863,2]
[353464908,1739857842054,-500.0,0.00013863,2]
[353464909,1739857842064,-500.0,0.00013863,2]
[353464910,1739857842073,-500.0,0.00013863,2]
[353464911,1739857842083,-500.0,0.00013863,2]
[353464912,1739857842092,-500.0,0.00013863,2]
[353464913,1739857842101,-500.0,0.00013863,2]
[353464914,1739857842111,-397.67,0.00013863,2]
[353464915,1739857842120,-500.0,0.00013863,2]
[353464916,1739857842129,-170.28,0.00013863,2]
[353464917,1739857842139,-1715.04,0.00013863,2]
[353464918,1739857842148,-500.0,0.00013863,2]
[353464919,1739857842158,-210.87,0.00013863,2]
[353464920,1739857842168,-500.0,0.00013863,2]
[353464921,1739857842178,-500.0,0.00013863,2]
[353464922,1739857842188,-180.78,0.00013863,2]
[353464923,1739857842197,-500.0,0.00013863,2]
[353464924,1739857842207,-500.0,0.00013863,2]
[353464925,1739857842221,-500.0,0.00013863,2]
[353464926,1739857842230,-500.0,0.00013945,2]
[353464927,1739857842240,-500.0,0.00013945,2]
[353464928,1739857842249,-500.0,0.00013945,2]
[353464929,1739857842260,-1654.65,0.00013945,2]
[353464930,1739857842269,-500.0,0.00013945,2]
[353464931,1739857842278,-4731.14,0.00013945,2]
[353464932,1739857842288,-500.0,0.00013945,2]
[353464933,1739857842298,-338.01,0.00013945,2]
[353464934,1739857842308,-500.0,0.00013945,2]
[353464935,1739857842317,-254.06,0.00013945,2]
[353464936,1739857842327,-352.72,0.00013945,2]
[353464937,1739857842416,-500.0,0.00013945,2]
[353464938,1739857842425,-500.0,0.00013945,2]
[353464939,1739857842435,-1715.04,0.00013945,2]
[353464940,1739857842444,-500.0,0.00013945,2]
[353464941,1739857842453,-500.0,0.00013945,2]
[353464942,1739857842463,-500.0,0.00013945,2]
[353464943,1739857842472,-500.0,0.00013945,2]
[353464944,1739857842481,-500.0,0.00013945,2]
[353464945,1739857842491,-500.0,0.00013945,2]
[353464946,1739857842500,-500.0,0.00014027,2]
[353464947,1739857842510,-500.0,0.00014027,2]
[353464948,1739857842519,-500.0,0.00014027,2]
[353464949,1739857842529,-1654.65,0.00014027,2]
[353464950,1739857842539,-500.0,0.00014027,2]
[353464951,1739857842549,-4731.14,0.00014027,2]
[353464952,1739857842559,-500.0,0.00014027,2]
[353464953,1739857842569,-620.11,0.00014027,2]
[353464954,1739857842579,-500.0,0.00014027,2]
[353464955,1739857842589,-484.49,0.00014027,2]
[353464956,1739857842599,-1715.04,0.00014027,2]
[353464957,1739857842608,-500.0,0.00014027,2]
[353464958,1739857842617,-500.0,0.00014027,2]
[353464959,1739857842627,-500.0,0.00014027,2]
[353464960,1739857842636,-500.0,0.00014027,2]
[353464961,1739857842646,-500.0,0.00014027,2]
[353464962,1739857842655,-500.0,0.00014027,2]
[353464963,1739857842665,-252.64,0.00014109,2]
[353464964,1739857842674,-500.0,0.00014109,2]
[353464965,1739857842683,-500.0,0.00014109,2]
[353464966,1739857842693,-1654.65,0.00014109,2]
[353464967,1739857842702,-500.0,0.00014109,2]
[353464968,1739857842712,-4731.14,0.00014109,2]
[353464969,1739857842722,-500.0,0.00014109,2]
[353464970,1739857842731,-500.0,0.00014109,2]
[353464971,1739857842741,-1715.04,0.00014109,2]
[353464972,1739857842751,-500.0,0.00014109,2]
[353464973,1739857842761,-500.0,0.00014109,2]
[353464974,1739857842772,-500.0,0.00014109,2]
[353464975,1739857842782,-500.0,0.00014109,2]
[353464976,1739857842792,-500.0,0.00014109,2]
[353464977,1739857842802,-500.0,0.00014109,2]
[353464978,1739857842812,-500.0,0.00014191,2]
[353464980,1739857842821,-500.0,0.00014191,2]
[353464982,1739857842831,-1654.65,0.00014191,2]
[353464983,1739857842841,-500.0,0.00014191,2]
[353464984,1739857842851,-4731.14,0.00014191,2]
[353464985,1739857842860,-500.0,0.00014191,2]
[353464987,1739857842870,-500.0,0.00014191,2]
[353464988,1739857842879,-1715.04,0.00014191,2]
[353464989,1739857842888,-500.0,0.00014191,2]
[353464990,1739857842898,-500.0,0.00014191,2]
[353464991,1739857842908,-500.0,0.00014191,2]
[353464992,1739857842918,-500.0,0.00014191,2]
[353464993,1739857842927,-500.0,0.00014191,2]
[353464994,1739857842936,-500.0,0.00014191,2]
[353464995,1739857842946,-503.64714928,0.00014221,2]
[353464996,1739857842955,-500.0,0.00014273,2]
[353464997,1739857842966,-500.0,0.00014273,2]
[353464998,1739857842976,-1654.65,0.00014273,2]
[353464999,1739857842986,-500.0,0.00014273,2]
[353465000,1739857842995,-4731.14,0.00014273,2]
[353465002,1739857843005,-500.0,0.00014273,2]
[353465004,1739857843015,-500.0,0.00014273,2]
[353465007,1739857843024,-1715.04,0.00014273,2]
[353465010,1739857843035,-500.0,0.00014273,2]
[353465012,1739857843044,-500.0,0.00014273,2]
[353465013,1739857843054,-500.0,0.00014273,2]
[353465015,1739857843064,-500.0,0.00014273,2]
[353465017,1739857843074,-500.0,0.00014273,2]
[353465018,1739857843085,-500.0,0.00014273,2]
[353465019,1739857843094,-500.0,0.00014356,2]
[353465020,1739857843104,-500.0,0.00014356,2]
[353465021,1739857843114,-1654.65,0.00014356,2]
[353465022,1739857843124,-500.0,0.00014356,2]
[353465023,1739857843134,-4731.14,0.00014356,2]
[353465024,1739857843143,-500.0,0.00014356,2]
[353465026,1739857843153,-500.0,0.00014356,2]
[353465027,1739857843163,-1715.04,0.00014356,2]
[353465028,1739857843172,-500.0,0.00014356,2]
[353465029,1739857843182,-500.0,0.00014356,2]
[353465030,1739857843191,-500.0,0.00014356,2]
[353465031,1739857843201,-500.0,0.00014356,2]
[353465032,1739857843215,-500.0,0.00014356,2]
[353465034,1739857843224,-611.77,0.00014356,2]
[353465036,1739857843234,-500.0,0.00014438,2]
[353465037,1739857843244,-500.0,0.00014438,2]
[353465038,1739857843254,-1654.65,0.00014438,2]
[353465039,1739857843264,-500.0,0.00014438,2]
[353465040,1739857843273,-4731.14,0.00014438,2]
[353465042,1739857843283,-500.0,0.00014438,2]
[353465043,1739857843294,-500.0,0.00014438,2]
[353465044,1739857843304,-1715.04,0.00014438,2]
[353465045,1739857843313,-275.44,0.00014438,2]
[353465046,1739857843323,-500.0,0.00014438,2]
[353465047,1739857843332,-500.0,0.00014438,2]
[353465048,1739857843342,-500.0,0.00014438,2]
[353465050,1739857843352,-500.0,0.00014438,2]
[353465052,1739857843362,-500.0,0.00014467,2]
[353465053,1739857843374,-160.02194052,0.00014467,2]
[353465054,1739857843383,-500.0,0.00014467,2]
[353465055,1739857843393,-500.0,0.0001452,2]
[353465056,1739857843404,-500.0,0.0001452,2]
[353465058,1739857843413,-1654.65,0.0001452,2]
[353465059,1739857843422,-500.0,0.0001452,2]
[353465060,1739857843432,-4731.14,0.0001452,2]
[353465061,1739857843442,-500.0,0.0001452,2]
[353465062,1739857843452,-500.0,0.0001452,2]
[353465063,1739857843474,-1715.04,0.0001452,2]
[353465064,1739857843488,-500.0,0.0001452,2]
[353465065,1739857843497,-500.0,0.0001452,2]
[353465066,1739857843507,-500.0,0.0001452,2]
[353465067,1739857843517,-500.0,0.0001452,2]
[353465068,1739857843526,-500.0,0.00014602,2]
[353465069,1739857843536,-500.0,0.00014602,2]
[353465070,1739857843545,-1654.65,0.00014602,2]
[353465071,1739857843555,-500.0,0.00014602,2]
[353465072,1739857843565,-4731.14,0.00014602,2]
[353465073,1739857843574,-500.0,0.00014602,2]
[353465074,1739857843583,-585.68,0.00014602,2]
[353465075,1739857843593,-1715.04,0.00014602,2]
[353465076,1739857843602,-500.0,0.00014602,2]
[353465077,1739857843612,-500.0,0.00014602,2]
[353465078,1739857843622,-500.0,0.00014602,2]
[353465079,1739857843631,-500.0,0.00014602,2]
[353465080,1739857843640,-500.0,0.00014684,2]
[353465081,1739857843650,-500.0,0.00014684,2]
[353465083,1739857843659,-1654.65,0.00014684,2]
[353465085,1739857843669,-500.0,0.00014684,2]
[353465087,1739857843679,-4731.14,0.00014684,2]
[353465089,1739857843688,-500.0,0.00014684,2]
[353465090,1739857843697,-1715.04,0.00014684,2]
[353465092,1739857843707,-500.0,0.00014684,2]
[353465093,1739857843717,-500.0,0.00014684,2]
[353465096,1739857843726,-500.0,0.00014684,2]
[353465097,1739857843735,-500.0,0.00014684,2]
[353465098,1739857843744,-324.73409902,0.00014735,2]
[353465099,1739857843753,-500.0,0.00014767,2]
[353465100,1739857843763,-500.0,0.00014767,2]
[353465101,1739857843772,-1654.65,0.00014767,2]
[353465102,1739857843781,-500.0,0.00014767,2]
[353465103,1739857843790,-4731.14,0.00014767,2]
[353465104,1739857843799,-500.0,0.00014767,2]
[353465105,1739857843808,-1715.04,0.00014767,2]
[353465106,1739857843817,-589.53,0.00014767,2]
[353465107,1739857843826,-523.04,0.00014767,2]
[353465108,1739857843835,-592.49,0.00014767,2]
[353465109,1739857843844,-157.51,0.00014767,2]
[353465110,1739857843854,-500.0,0.00014849,2]
[353465111,1739857843863,-500.0,0.00014849,2]
[353465112,1739857843872,-1654.65,0.00014849,2]
[353465113,1739857843881,-500.0,0.00014849,2]
[353465114,1739857843891,-4731.14,0.00014849,2]
[353465115,1739857843900,-500.0,0.00014849,2]
[353465116,1739857843909,-1715.04,0.00014849,2]
[353465117,1739857843918,-300.0,0.000149,5]
[353465118,1739857843927,-8535.2145234,0.000149,2]
[353465119,1739857843937,-500.0,0.00014931,2]
[353465120,1739857843946,-500.0,0.00014931,2]
[353465121,1739857843955,-1654.65,0.00014931,2]
[353465122,1739857843966,-500.0,0.00014931,2]
[353465123,1739857843976,-4731.14,0.00014931,2]
[353465124,1739857843985,-318.74,0.00014931,2]
[353465125,1739857843995,-1715.04,0.00014931,2]
[353465126,1739857844004,-159.93229297,0.00015,2]
[353465127,1739857844014,-159.93229297,0.00015,2]
[353465128,1739857844023,-159.93229297,0.00015,2]
[353465129,1739857844032,-159.93229297,0.00015,2]
[353465130,1739857844041,-159.93229297,0.00015,2]
[353465131,1739857844050,-159.93229297,0.00015,2]
[353465132,1739857844059,-159.93229297,0.00015,2]
[353465133,1739857844069,-159.93,0.00015,2]
[353465134,1739857844078,-157.12646327,0.00015,2]
[353465135,1739857844088,-157.12646327,0.00015,2]
[353465136,1739857844098,-157.12646327,0.00015,2]
[353465137,1739857844107,-157.12646327,0.00015,2]
[353465138,1739857844116,-157.12646327,0.00015,2]
[353465139,1739857844125,-157.12646327,0.00015,2]
[353465140,1739857844134,-157.12646327,0.00015,2]
[353465141,1739857844143,-157.12646327,0.00015,2]
[353465142,1739857844152,-157.12646327,0.00015,2]
[353465143,1739857844162,-157.12646327,0.00015,2]
[353465144,1739857844171,-157.12646327,0.00015,2]
[353465145,1739857844181,-157.12646327,0.00015,2]
[353465146,1739857844190,-157.12646327,0.00015,2]
[353465147,1739857844201,-157.12646327,0.00015,2]
[353465148,1739857844225,-157.12646327,0.00015,2]
[353465149,1739857844234,-157.12646327,0.00015,2]
[353465150,1739857844244,-157.12646327,0.00015,2]
[353465151,1739857844253,-157.12646327,0.00015,2]
[353465152,1739857844263,-157.12,0.00015,2]
[353465153,1739857844272,-1422.5357539,0.00015003,2]
[353465154,1739857844281,-420.0,0.00015009,2]
[353465155,1739857844291,-500.0,0.00015013,2]
[353465156,1739857844301,-500.0,0.00015013,2]
[353465157,1739857844310,-1654.65,0.00015013,2]